Cogmind - Beta 16.1 @@@ ROGUE MODE // 2026.03.11 @ 02:41:57 Player: CONM Result: Destroyed self with Rocket Launcher Performance ------------- Evolutions (0) 0 Regions Visited (2) 400 Robots Destroyed (10) 50 Value Destroyed (106) 106 Prototype IDs (0) 0 Alien Tech Used (0) 0 Bonus (0) 0 TOTAL SCORE: 556 Bonus ------- None Cogmind --------- Core Integrity 0/250 Matter 257/300 Energy 100/100 System Corruption 11% Temperature Cool (0) Movement Core (100) Ox1 Location -10/Mines Parts ------- > --- POWER (1) -------- (None) > --- PROPULSION (2) --- (None) > --- UTILITY (2) ------ (None) > --- WEAPON (2) ------- Rocket Launcher > --- INVENTORY (5) ---- Light Ion Engine Hover Unit Visual Processing Unit Improved Terrain Scanner EM Pulse Gun Peak State ------------ > --- POWER ------------ Ion Engine > --- PROPULSION ------- Light Treads Light Treads > --- UTILITY ---------- Small Storage Unit Seismic Detector > --- WEAPON ----------- Assault Rifle Light Assault Rifle > --- INVENTORY -------- Compact Wheel Compact Wheel Hover Unit Visual Processing Unit Improved Terrain Scanner EM Pulse Gun EM Pulse Gun [Rating: 8] Favorites ----------- Power Ion Engine Engine Ion Engine Propulsion Light Treads Treads Light Treads Utility Small Storage Unit Device Seismic Detector Storage Small Storage Unit Weapon Assault Rifle Energy Gun EM Pulse Gun Ballistic Gun Assault Rifle Launcher Rocket Launcher Build | -11 -10 -10 ------- Run | Yrd Mat Min Slots Evolved . | . . . Power . | . . . Propulsion . | . . . Utility . | . . . Weapon . | . . . Parts Attached 9 | 8 . 1 Power 1 | 1 . . Engine 1 | 1 . . Core . | . . . Reactor . | . . . Propulsion 2 | 2 . . Treads 2 | 2 . . Leg . | . . . Wheel . | . . . Hover . | . . . Flight . | . . . Utility 2 | 2 . . Device 1 | 1 . . Storage 1 | 1 . . Processor . | . . . Hackware . | . . . Protection . | . . . Artifact . | . . . Weapon 4 | 3 . 1 Energy Gun 1 | 1 . . Energy Cannon . | . . . Ballistic Gun 2 | 2 . . Ballistic Cannon . | . . . Launcher 1 | . . 1 Special Weapon . | . . . Impact Weapon . | . . . Slashing Weapon . | . . . Piercing Weapon . | . . . Special Melee Weapon . | . . . Unidentified Prototypes . | . . . Parts Lost 7 | . . 7 Power 1 | . . 1 Propulsion 2 | . . 2 Utility 2 | . . 2 Weapon 2 | . . 2 Highest Loss Streak 7 | . . 7 To Critical Strikes . | . . . Average Backups 5 | 2 6 7 Power . | . . . Propulsion 1 | 1 2 1 Utility 1 | . 1 2 Weapon 1 | . 1 2 Tool/Special . | . . . Unused Backups 8 | . 1 7 Power 1 | . . 1 Propulsion 3 | . 1 2 Utility 2 | . . 2 Weapon 2 | . . 2 Tool/Special . | . . . Average Slot Usage (%) 95 | . 100 90 Engine 13 | . 14 12 Treads 26 | . 28 25 Device 13 | . 14 12 Storage 13 | . 14 12 Ballistic Gun 26 | . 28 24 Peak Build Rating 8 | 7 8 8 Average Rating 6 | 5 7 7 On Entrance 5 | . 7 8 Avg Prop Armor Cover (%) . | . . . Naked Turns 9 | . . 9 Heaviest Build 14 | 14 14 14 Greatest Support 40 | 40 40 40 Greatest Overweight (x) 1 | . . 1 Average Overweight (x) . | . . . Largest Inventory Capacity 8 | 8 8 8 Average Capacity 7 | 7 8 7 Most Carried 8 | 4 8 8 Average Carried 5 | 2 6 7 Final Capacity 8 | 8 8 5 Final Carried 8 | 4 8 5 Class Distribution -------------------- 100% | Mutant Dominant Class ---------------- Mutant | -10/Materials Mutant | -10/Mines Resources | -11 -10 -10 ----------- Run | Yrd Mat Min Matter Collected 414 | 225 60 129 Remotely . | . . . Salvage Created 172 | 36 73 63 Parts 20 | 6 9 5 Haulers Intercepted . | . . . Recyclers Shooed 1 | . . 1 Parts Field Recycled . | . . . Retrieved Matter . | . . . Parts Self-Destructed . | . . . Prevented . | . . . Parts Restored . | . . . Kills | -11 -10 -10 ------- Run | Yrd Mat Min Combat Hostiles Destroyed 10 | . 3 7 Guns 6 | . 3 3 AOE 4 | . . 4 Classes Destroyed 4 | 1 2 1 Tunneler 2 | 2 . . Watcher 2 | . 2 . Swarmer 6 | . 3 3 Assembled 4 | . . 4 Best Kill Streak 4 | 1 3 4 Combat Bots Only 4 | . 3 4 Max Kills in Single Turn 3 | 1 1 3 Gunslinging . | . . . Exploded 3 | . . 3 Melee . | . . . Uniques/NPCs Destroyed . | . . . Combat | -11 -10 -10 -------- Run | Yrd Mat Min Hostile Shots Fired 102 | . 8 94 Missed 33 | . 1 32 Hits 69 | . 7 62 Melee 11 | . . 11 Projectile 58 | . 7 51 Part Disruptions 2 | . . 2 Damage Taken 1014 | . 57 957 Core 259 | . 9 250 Absorbed by Shields . | . . . Core Remaining (%) 100 | 100 . . Volleys Fired 36 | 7 11 18 Largest 2 | 2 2 2 Hottest 40 | 40 40 40 Shots Fired 69 | 14 22 33 Gun 66 | 14 22 30 Cannon . | . . . Launcher 3 | . . 3 Special . | . . . Kinetic 66 | 14 22 30 Thermal . | . . . Explosive 3 | . . 3 Electromagnetic . | . . . Robot Hit Streak 5 | 5 4 5 Robot Miss Streak 3 | 1 1 3 Penetration Max . | . . . Secondary Targets 2 | . 1 1 Max Gunslinging Chain 1 | . 1 1 Shots Hit Robots 39 | 10 13 16 Core Hits 22 | 5 8 9 Critical Kills . | . . . Critical Parts Destroyed . | . . . Critical Strikes . | . . . Melee Attacks . | . . . Impact . | . . . Slashing . | . . . Piercing . | . . . Sneak Attacks . | . . . Combat Hostiles . | . . . Follow-up Attacks . | . . . Damage Inflicted 655 | 111 134 410 Guns 427 | 111 134 182 Cannons . | . . . Explosions 228 | . . 228 Melee . | . . . Ramming . | . . . Kinetic 427 | 111 134 182 Thermal . | . . . Explosive 228 | . . 228 Electromagnetic . | . . . Impact . | . . . Slashing . | . . . Piercing . | . . . Highest Corruption 11 | . . 11 Average Corruption 9 | . . 9 Corruption Purged . | . . . Corruption Blocked . | . . . Effects 2 | . . 2 Message Errors 2 | . . 2 Overload Shots . | . . . Overflow Damage 16 | . . 16 Projectiles . | . . . Explosions 16 | . . 16 Melee . | . . . Knockbacks . | . . . Impact . | . . . Kinetic . | . . . Secondary . | . . . Self-Inflicted Damage 67 | . . 67 Shots 2 | . . 2 Rammed . | . . . Targets Rammed . | . . . Kicked . | . . . Crushed . | . . . Highest Temperature 20 | . . 20 Average Temperature 12 | . . 12 Received Heat Transfer 160 | . . 160 Siege Activations . | . . . Martial Activations . | . . . Shielding Activations . | . . . Robots Disrupted . | . . . Combat Hostiles . | . . . Robots Corrupted . | . . . Combat Hostiles . | . . . Parts Fried . | . . . Impact Corruptions . | . . . Robots Melted . | . . . Combat Hostiles . | . . . Parts Melted . | . . . Heat Transferred . | . . . Parts Sabotaged . | . . . Parts Stolen . | . . . Parts Stripped . | . . . Power Chain Reactions . | . . . Alert | -11 -10 -10 ------- Run | Yrd Mat Min Maximum Alert Level . | . . . Low Security (%) 100 | 100 100 100 Level 1 . | . . . Level 2 . | . . . Level 3 . | . . . Level 4 . | . . . Level 5 . | . . . High Security . | . . . Max Security . | . . . Peak Influence 75 | 5 75 60 Initial 17 | . . 17 Average 17 | . 24 23 Influence Increases 195 | 10 99 86 Destroy 0b10 Robot/C 120 | . 60 60 Destroy 0b10 Robot/NC 20 | 10 10 . Destroy Leader 24 | . 14 10 Destroy Structure 16 | . . 16 Lose Combat Pursuer 15 | . 15 . Influence Decreases 179 | 10 54 115 Entered New Map 28 | . . 28 Time Decay 141 | 10 54 77 Lost Part 10 | . . 10 Squads Dispatched . | . . . Investigation . | . . . Extermination . | . . . Reinforcement . | . . . Assault . | . . . Garrison . | . . . Intercept . | . . . Searches Triggered . | . . . Construction Impeded . | . . . Haulers Reinforced . | . . . Active Scanning Responses . | . . . Cargo Convoy Interrupts . | . . . Stealth | -11 -10 -10 --------- Run | Yrd Mat Min Distress Signals . | . . . Communications Jammed . | . . . Distress Signals . | . . . Times Spotted 18 | . 5 13 Peak Tracking Total 10 | . 3 10 Tactical Retreats 1 | . 1 . Traps | -11 -10 -10 ------- Run | Yrd Mat Min Traps Triggered . | . . . Indirectly . | . . . Trap Hack Attempts . | . . . Triggered . | . . . Disarmed . | . . . Reprogrammed . | . . . Reused . | . . . Traps Extracted . | . . . Installed . | . . . Triggered . | . . . Machines | -11 -10 -10 ---------- Run | Yrd Mat Min Machines Disabled . | . . . Max in Single Turn . | . . . Machines Repaired . | . . . Machines Dismantled . | . . . Machines Sabotaged . | . . . Overloaded Fab Kills . | . . . Hacking | -11 -10 -10 --------- Run | Yrd Mat Min Machines Accessed 1 | . 1 . Terminals 1 | . 1 . Fabricators . | . . . Repair Stations . | . . . Recycling Units . | . . . Scanalyzers . | . . . Garrison Access . | . . . Total Hacks 3 | . 3 . Successful 3 | . 3 . Failed . | . . . Catastrophic . | . . . Database Lockouts . | . . . Manual . | . . . Terminals 3 | . 3 . Fabricators . | . . . Repair Stations . | . . . Recycling Units . | . . . Scanalyzers . | . . . Garrison Access . | . . . Terminal Hacks 3 | . 3 . Record 2 | . 2 . Zone Layout 1 | . 1 . Fabricator Hacks . | . . . Repair Station Hacks . | . . . Recycling Unit Hacks . | . . . Scanalyzer . | . . . Garrison Access Hacks . | . . . Unauthorized Hacks . | . . . Terminals . | . . . Fabricators . | . . . Repair Stations . | . . . Recycling Units . | . . . Scanalyzers . | . . . Garrison Access . | . . . Data Cores Recovered . | . . . Used . | . . . Hacking Detections . | . . . Full Trace Events . | . . . Feedback Events . | . . . Feedback Blocked . | . . . Robot Schematics Acquired . | . . . Robots Built . | . . . Authchips . | . . . Time . | . . . Total Robot Build Rating . | . . . Part Schematics Acquired . | . . . Parts Built . | . . . Authchips . | . . . Time . | . . . Total Part Build Rating . | . . . Part Studies Acquired . | . . . Parts Repaired . | . . . Time . | . . . Parts Recycled . | . . . Recycled Matter . | . . . Retrieved Matter . | . . . Retrieved Components . | . . . Parts Scanalyzed . | . . . Part Schematics Acquired . | . . . Parts Damaged . | . . . Bothacking | -11 -10 -10 ------------ Run | Yrd Mat Min Used RIF Installer . | . . . Robots Hacked . | . . . Non-combat . | . . . Combat . | . . . Robot Hacks Applied . | . . . Relay Couplers Released . | . . . Fabnet Peak Effective % . | . . . Robots Rewired . | . . . Allies Hacked . | . . . Hacks Repelled . | . . . Allies | -11 -10 -10 -------- Run | Yrd Mat Min Total Allies . | . . . Largest Group . | . . . Highest-Rated Group . | . . . Highest-Rated Ally . | . . . Total Orders . | . . . Ally Attacks . | . . . Total Damage . | . . . Kills . | . . . Allies Corrupted . | . . . Allies Melted . | . . . Intel | -11 -10 -10 ------- Run | Yrd Mat Min Active Infowar (turns) 425 | 22 213 190 Seismic 425 | 22 213 190 Robot Analysis Total . | . . . Derelict Logs Recovered . | . . . Drone Launches . | . . . Drone Recoveries . | . . . Exploration | -11 -10 -10 ------------- Run | Yrd Mat Min Turns Passed 590 | 168 213 209 Spaces Moved 305 | 84 108 113 Core 23 | 3 . 20 Treads 282 | 81 108 93 Legs . | . . . Wheels . | . . . Hover . | . . . Flight . | . . . Fastest Speed 50 | 50 160 50 Average Speed 151 | 156 160 140 Slowest Speed 160 | 160 160 160 Overloaded Moves . | . . . Propulsion Burnouts . | . . . Robots Hopped . | . . . Potential Cave-ins . | . . . Cave-ins Triggered . | . . . Exploration Rate (%) 19 | 6 26 25 Regions Visited 2 Branch Regions 1 Pre-discovered Areas . | . . . Known Exits Taken . | . . . Unknown Exits Taken 2 | 1 1 . Scrap Searched 1 | . . 1 Spaces Dug . | . . . Terrain Destroyed 18 | . . 18 Melee . | . . . Projectile . | . . . AOE 18 | . . 18 Terrain Rammed . | . . . Walls Destroyed . | . . . Machines Disabled . | . . . Actions | -11 -10 -10 --------- Run | Yrd Mat Min Total 367 | 104 129 134 Wait 7 | 2 5 . Move 303 | 83 107 113 Hop . | . . . Pick Up 9 | 3 5 1 Fast Attach 8 | 7 . 1 Attach . | . . . Detach . | . . . Swap 2 | 2 . . Drop 2 | . 1 1 Fire 36 | 7 11 18 Melee . | . . . Ram . | . . . Kick . | . . . Crush . | . . . Escape Stasis . | . . . Rewire . | . . . Trap . | . . . Miscellaneous . | . . . Route ------- -11/Scrapyard -10/Materials -10/Mines History --------- Turn | Location | Event 4 | -11/Scrapyard | Discovered new exit (range 16) 169 | -11/Scrapyard | Entered Materials 303 | -10/Materials | Build established: Mutant 323 | -10/Materials | Discovered new exit (range 13) 382 | -10/Materials | Entered Mines 512 | -10/Mines | Received a Rocket Launcher from a helpful Derelict 525 | -10/Mines | Assembled infested the area 567 | -10/Mines | Core integrity fell below 50% 576 | -10/Mines | Core integrity fell below 20% 576 | -10/Mines | System corruption reached 10% 591 | -10/Mines | Destroyed self with Rocket Launcher Last Messages --------------- 00565_ Lgt. Assault Rifle destroyed. 00565_ System corrupted by crushing effect (+5). 00567_ TB7PG&=BLW,UTXU MJYEMJ< #Y4V7J EZ 00571_ as-84217 destroyed. 00572_ Seismic Detector destroyed. 00572_ System corrupted by crushing effect (+4). 00572_ Lgt. Treads destroyed. 00574_ Assault Rifle destroyed. 00574_ Lgt. Treads destroyed. 00575_ as-82614 destroyed. 00575_ Sml. Storage Unit destroyed. 00575_ System corrupted by crushing effect (+2). 00575_ Knocked back. 00583_ WLK>>6Q&8R%AXLHWDWMGTFN=KDH ARQ%WG9C2F3 00584_ Acquired Rocket Launcher. 00587_ Destroyed Asb. Hover Unit. 00587_ as-96250 destroyed. 00589_ as-91897 destroyed. 00589_ as-72984 destroyed. 00589_ as-76743 destroyed. Map ----- +----------------------------------------------------+ | ????????????????????????????????????????# ## $ | | ????????????????????????????????????????# | | ???????????????????????????????????????## | | ???????????????????????????????????????# ? | | ????????????????????????????????????????? ? | | ?????????????????????????????????????????? ?? | | ??????????????????????????????????????????? #?? | | ????????????????????????????????????????????# #?? | | ????????????????????????????????####????##### #?? | | ???????????????????????????????## ###### ## #?? | | ???????????????????????????????# ^ #?? | | ???????????????????????????????# # ##?? | | ???????????????????????????????#^ ^ # ##??? | | ???? ??????????????????????# ^# ##???? | | ???? ?????????????????????# ## ## ##????? | | ???? ????????????????????# #####?????? | | ???? #????????????????????# ######?????????? | | ????# ?????????????????????# #?????????? | | ????# #?????????????????????####### #?????????? | | ????# #???????#####???????????????# #?????????? | | ????# #??????## #????????####### #?????????? | | ????# #??????# ##??????# #?????????? | | ##### #?????### ####???# ##### #?????????? | | #??##### ##??# #???# #?????????? | | #??# / a #### #####=##????????? | | #??#%a a% % a@ ## *= #????????? | | ####! ## ######### = #????????? | | %/ ##### # #???????# #????????? | | % [= #???#### ???????# #????????? | | ##########??????#### ##??????# """ #????????? | | ##??????????????????###???????# """ #????????? | | ##?????????????????????????????# """ #????????? | | ####??????????????????????????????# #????????? | | ??????????????????????????????????#######????????? | | ?????????????????????????????????????????????????? | | ?????????????????????????????????????????????????? | | | | | | | | | | | | | | | | | | | | | | | | | | | | | +----------------------------------------------------+ Best States ------------- Heat Dissipation 25 Energy Generation 10 Energy Capacity 250 Matter Stores 300 Matter Capacity 300 Sight Range 16 Terrain Scan Density 10 Evasion (%) 50 Recoil Reduction 2 Item Schematics ----------------- None Robot Schematics ------------------ None Fabricated ------------ Nothing Repaired ---------- Nothing Studied --------- None Alien Tech Used ----------------- None Achievements -------------- None Challenges ------------ None Game ------ Seed SigixRapidPlating Manual? 0 Play Time 00:11:51 Cumulative 160.8 hours Start 2026.03.11 @ 02:24:32 End 2026.03.11 @ 02:41:57 Sessions 1 Manual Loads 0 Difficulty Rogue Special Mode None Game No. 172 Rogue 172 Adventurer 0 Explorer 0 Win Type - Total 0 Types 0/0/0/0/0/0/0/0/0/0 Lore% 55 Gallery% 45 Achievement% 32 Wizard Run 0 Options --------- Layout 0 ASCII 0 Keyboard 0 Movement Arrows Keybinds 0 Fullscreen 1 Font 20/SmallcapsGlow Map View 66x50 Zoom Use 0% Tactical HUD 1 Map Filters NONE Filters NONE Steam 1 RUN: 9a8614d5-b2a0-4b99-ad70-c5b30069a8cf